Workbook

Sheet Lista de Tabelas

Sheet 1. Histórico de Produção
B2: 1. HISTÓRICO DA PRODUÇÃO NACIONAL
B6: Tabela 1. Histórico de produção de petróleo – óleo e condensado (Mbbl/d)
B8: Mês/Ano | C8: 01/2024 | D8: 02/2024 | E8: 03/2024 | F8: 04/2024 | G8: 05/2024 | H8: 06/2024 | I8: 07/2024 | J8: 08/2024 | K8: 09/2024 | L8: 10/2024 | M8: 11/2024 | N8: 12/2024 | O8: 01/2025
B9: Condensado | C9: 7.638825116 | D9: 7.264365741 | E9: 5.160161544 | F9: 6.71725773 | G9: 7.279311547 | H9: 7.011494203 | I9: 6.819543074 | J9: 7.441463255 | K9: 7.380828911 | L9: 7.663896095 | M9: 7.488427643 | N9: 7.894646297 | O9: 6.721620877
B10: Óleo | C10: 3511.484953 | D10: 3441.062223 | E10: 3351.094268 | F10: 3187.701672 | G10: 3310.653153 | H10: 3404.653982 | I10: 3225.59059 | J10: 3335.215448 | K10: 3465.102442 | L10: 3263.24773 | M10: 3305.079981 | N10: 3413.336314 | O10: 3441.924701
B11: Petróleo | C11: =SUM(C9:C10) -> 3519.123778 | D11: =SUM(D9:D10) -> 3448.326589 | E11: 3356.254429 | F11: 3194.41893 | G11: 3317.932465 | H11: 3411.665477 | I11: 3232.410133 | J11: 3342.656911 | K11: 3472.483271 | L11: 3270.911626 | M11: 3312.568408 | N11: 3421.23096 | O11: 3448.646322
B14: Tabela 2. Histórico de produção de gás natural – GASA e GASN (MMm³/d)
B16: Mês/Ano | C16: 01/2024 | D16: 02/2024 | E16: 03/2024 | F16: 04/2024 | G16: 05/2024 | H16: 06/2024 | I16: 07/2024 | J16: 08/2024 | K16: 09/2024 | L16: 10/2024 | M16: 11/2024 | N16: 12/2024 | O16: 01/2025
B17: GASA | C17: 135.4118654 | D17: 134.0272056 | E17: 134.9164869 | F17: 126.6622654 | G17: 134.4337137 | H17: 138.3407921 | I17: 135.448089 | J17: 141.8843002 | K17: 150.615949 | L17: 138.7854892 | M17: 141.0844366 | N17: 143.7242951 | O17: 146.5025384
B18: GASN | C18: 18.51562226 | D18: 14.60744921 | E18: 9.065814742 | F18: 10.06320227 | G18: 11.19694632 | H18: 11.83442887 | I18: 15.92780203 | J18: 17.92406345 | K18: 19.42443303 | L18: 20.16465716 | M18: 16.65182023 | N18: 17.402905 | O18: 14.25826739
B19: Gás Total | C19: =SUM(C17:C18) -> 153.9274876 | D19: =SUM(D17:D18) -> 148.6346548 | E19: 143.9823016 | F19: 136.7254677 | G19: 145.6306601 | H19: 150.175221 | I19: 151.375891 | J19: 159.8083636 | K19: 170.040382 | L19: 158.9501463 | M19: 157.7362568 | N19: 161.1272001 | O19: 160.7608058
B22: Tabela 3. Histórico da movimentação de gás natural (Mm³/d)
B24: Mês/Ano | C24: Consumo Interno | D24: Queima | E24: Injeção | F24: Disponível | G24: Produção | H24: Aproveitamento | I24: Injeção descontando CO2 | J24: Produção descontando CO2
B25: 01/2024 | C25: 16452.41623 | D25: 4545.809581 | E25: 81304.29703 | F25: 51624.96481 | G25: 153927.4876 | H25: 0.9706077353 | I25: 81282.51768 | J25: 129528.4767
B26: 02/2024 | C26: 16455.23669 | D26: 5284.912759 | E26: 75653.09134 | F26: 51241.41397 | G26: 148634.6548 | H26: 0.9646242021 | I26: 75629.83928 | J26: 124393.4643
B27: 03/2024 | C27: 15912.39194 | D27: 5617.911613 | E27: 83874.22681 | F27: 38577.77129 | G27: 143982.3016 | H27: 0.9611735055 | I27: 83853.53713 | J27: 119402.2332
B28: 04/2024 | C28: 15144.3962 | D28: 3970.842867 | E28: 73277.49607 | F28: 44332.73257 | G28: 136725.4677 | H28: 0.9710878908 | I28: 73256.56407 | J28: 115151.8525
B29: 05/2024 | C29: 15837.61274 | D29: 3547.008968 | E29: 80280.98394 | F29: 45965.05442 | G29: 145630.6601 | H29: 0.9757747027 | I29: 80260.00394 | J29: 120891.4932
B30: 06/2024 | C30: 16172.61773 | D30: 3052.446667 | E30: 84245.09647 | F30: 46705.0601 | G30: 150175.221 | H30: 0.9797760171 | I30: 84224.22813 | J30: 125026.3149
B31: 07/2024 | C31: 15627.95852 | D31: 3379.876419 | E31: 82543.42329 | F31: 49824.63277 | G31: 151375.891 | H31: 0.9777819546 | I31: 82526.39006 | J31: 125769.3663
B32: 08/2024 | C32: 15259.75952 | D32: 3609.714065 | E32: 86579.15003 | F32: 54359.74003 | G32: 159808.3636 | H32: 0.9775080823 | I32: 86561.85584 | J32: 132528.755
B33: 09/2024 | C33: 16009.48377 | D33: 3632.629167 | E33: 93496.96413 | F33: 56901.30493 | G33: 170040.382 | H33: 0.9787376381 | I33: 93475.50413 | J33: 140277.8401
B34: 10/2024 | C34: 15415.21165 | D34: 3580.67771 | E34: 83833.52735 | F34: 56120.72961 | G34: 158950.1463 | H34: 0.9775974897 | I34: 83814.43477 | J34: 131588.889
B35: 11/2024 | C35: 15644.8962 | D35: 6207.5537 | E35: 85117.0216 | F35: 50766.7853 | G35: 157736.2568 | H35: 0.9608407721 | I35: 85094.53227 | J35: 128803.4761
B36: 12/2024 | C36: 16565.3591 | D36: 5651.261 | E36: 87786.72042 | F36: 51123.85955 | G36: 161127.2001 | H36: 0.9651021938 | I36: 87764.00106 | J36: 131849.4809
B37: 01/2025 | C37: 17033.62316 | D37: 4475.439581 | E37: 87787.49397 | F37: 51464.24906 | G37: 160760.8058 | H37: 0.9723254508 | I37: 87765.55268 | J37: 131270.4603
B39: Tabela 4. Histórico de produção de petróleo e gás natural (Mboe/d)
C42: 01/2024 | D42: 02/2024 | E42: 03/2024 | F42: 04/2024 | G42: 05/2024 | H42: 06/2024 | I42: 07/2024 | J42: 08/2024 | K42: 09/2024 | L42: 10/2024 | M42: 11/2024 | N42: 12/2024 | O42: 01/2025
B43: Petróleo | C43: 3519.123778 | D43: 3448.326589 | E43: 3356.254429 | F43: 3194.41893 | G43: 3317.932465 | H43: 3411.665477 | I43: 3232.410133 | J43: 3342.656911 | K43: 3472.483271 | L43: 3270.911626 | M43: 3312.568408 | N43: 3421.23096 | O43: 3448.646322
B44: Gás Natural | C44: 968.1746511 | D44: 934.8837378 | E44: 905.6213207 | F44: 859.977214 | G44: 915.989182 | H44: 944.5736066 | I44: 952.125593 | J44: 1005.164244 | K44: 1069.521695 | L44: 999.7662198 | M44: 992.1310854 | N44: 1013.459474 | O44: 1011.154924
B45: Total | C45: =SUM(C43:C44) -> 4487.298429 | D45: =SUM(D43:D44) -> 4383.210327 | E45: 4261.87575 | F45: 4054.396144 | G45: 4233.921647 | H45: 4356.239083 | I45: 4184.535726 | J45: 4347.821155 | K45: 4542.004966 | L45: 4270.677846 | M45: 4304.699494 | N45: 4434.690434 | O45: 4459.801246

Sheet 2. Dados de Produção
B2: 2. DADOS DE PRODUÇÃO - DISTRIBUIÇÃO
B6: Tabela 5. Distribuição da produção de petróleo e gás natural por estado
B8: Estado | C8: Petróleo (bbl/d) | D8: Gás Natural (Mm³/d) | E8: Produção Total (boe/d) | F8: Nº Campos produtores
B9: Rio de Janeiro | C9: 3004927.443 | D9: 122779.0851 | E9: 3777184.56 | F9: 48
B10: São Paulo | C10: 194157.8319 | D10: 10952.11545 | E10: 263044.5572 | F10: 7
B11: Espírito Santo | C11: 167812.4721 | D11: 3772.173 | E11: 191538.7235 | F11: 24
B12: Rio Grande do Norte | C12: 30687.19879 | D12: 1171.996387 | E12: 38058.83339 | F12: 68
B13: Bahia | C13: 21052.49685 | D13: 2672.380613 | E13: 37861.26315 | F13: 73
B14: Sergipe | C14: 12082.55295 | D14: 64.938 | E14: 12491.00064 | F14: 17
B15: Amazonas | C15: 10611.87972 | D15: 13658.06213 | E15: 96518.49548 | F15: 6
B16: Alagoas | C16: 3621.497701 | D16: 1743.985419 | E16: 14590.83463 | F16: 11
B17: Paraná | C17: 2854.778789 | D17: 123.132871 | E17: 3629.261152 | F17: 2
B18: Ceará | C18: 731.603511 | D18: 0.9149677419 | E18: 737.3584842 | F18: 2
B19: Maranhão | C19: 106.5672363 | D19: 3822.021806 | E19: 24146.35821 | F19: 8
B20: Total | C20: =SUM(C9:C19) -> 3448646.322 | D20: =SUM(D9:D19) -> 160760.8058 | E20: 4459801.246 | F20: 266
B22: Tabela 6. Distribuição da produção de petróleo e gás natural por bacia
B24: Bacia | C24: Petróleo (bbl/d) | D24: Gás Natural (Mm³/d) | E24: Produção Total (boe/d) | F24: Nº Campos produtores
B25: Santos | C25: 2628439.3 | D25: 125725.7102 | E25: 3419230.129 | F25: 27
B26: Campos | C26: 722749.5059 | D26: 11188.38829 | E26: 793122.3425 | F26: 32
B27: Potiguar | C27: 31418.8023 | D27: 1172.911355 | E27: 38796.19187 | F27: 70
B28: Recôncavo | C28: 21052.49685 | D28: 2650.646387 | E28: 37724.559 | F28: 72
B29: Espírito Santo | C29: 15708.94108 | D29: 589.2750968 | E29: 19415.36948 | F29: 20
B30: Sergipe | C30: 12082.55295 | D30: 64.938 | E30: 12491.00064 | F30: 17
B31: Solimões | C31: 10402.45786 | D31: 13002.21881 | E31: 92183.94373 | F31: 5
B32: Alagoas | C32: 3621.497701 | D32: 1743.985419 | E32: 14590.83463 | F32: 11
B33: Paraná | C33: 2854.778789 | D33: 123.132871 | E33: 3629.261152 | F33: 2
B34: Amazonas | C34: 209.4218616 | D34: 655.8433226 | E34: 4334.55175 | F34: 1
B35: Parnaíba | C35: 79.91467371 | D35: 3818.880677 | E35: 24099.94855 | F35: 7
B36: Barreirinhas | C36: 26.65256263 | D36: 3.141129032 | E36: 46.40966743 | F36: 1
B37: Tucano Sul | C37: 0 | D37: 21.73422581 | E37: 136.7041508 | F37: 1
B38: Total | C38: =SUM(C25:C37) -> 3448646.322 | D38: =SUM(D25:D37) -> 160760.8058 | E38: 4459801.246 | F38: 266
B40: Tabela 7. Distribuição da produção de petróleo e gás natural por operador
B42: Nº | C42: Operador | D42: Petróleo (bbl/d) | E42: Gás Natural (Mm³/d) | F42: Produção Total (boe/d)
B43: 1 | C43: PETROBRAS | D43: 3027391.93 | E43: 146621.792 | F43: 3949615.143
B44: 2 | C44: ENEVA | D44: 289.3365353 | E44: 4474.724 | F44: 28434.5003
B45: 3 | C45: ORIGEM ALAGOAS | D45: 3349.598142 | E45: 1739.436387 | F45: 14290.32252
B46: 4 | C46: TOTALENERGIES EP | D46: 44696.44087 | E46: 1512.713323 | F46: 54211.12025
B47: 5 | C47: 3R BAHIA | D47: 3310.243004 | E47: 895.7394839 | F47: 8944.274167
B48: 6 | C48: PETRO RIO JAGUAR | D48: 65174.64316 | E48: 804.8975806 | F48: 70237.29602
B49: 7 | C49: POTIGUAR E&P S.A. | D49: 8480.78314 | E49: 783.4516452 | F49: 13408.54513
B50: 8 | C50: SPE MIRANGA | D50: 1466.924705 | E50: 754.3107097 | F50: 6211.39575
B51: 9 | C51: 3R PETROLEUM OFF | D51: 13593.47995 | E51: 539.8706129 | F51: 16989.16353
B52: 10 | C52: TRIDENT ENERGY | D52: 22698.85786 | E52: 395.1172258 | F52: 25184.07014
B53: 11 | C53: SHELL BRASIL | D53: 28403.79771 | E53: 304.4359032 | F53: 30318.64169
B54: 12 | C54: ALVOPETRO | D54: 61.89335358 | E54: 257.6699355 | F54: 1682.58829
B55: 13 | C55: EQUINOR BRASIL | D55: 96943.93032 | E55: 221.62 | F55: 98337.87801
B56: 14 | C56: KAROON BRASIL | D56: 23946.08559 | E56: 197.5372258 | F56: 25188.55721
B57: 15 | C57: 3R RNCE | D57: 6814.745166 | E57: 191.6934839 | F57: 8020.460758
B58: 16 | C58: RECÔNCAVO ENERGIA SP | D58: 8.809994839 | E58: 149.0193226 | F58: 946.1132202
B59: 17 | C59: ENAUTA ENERGIA | D59: 20039.05263 | E59: 148.606871 | F59: 20973.76162
B60: 18 | C60: SPE TIÊTA | D60: 4165.441484 | E60: 109.1056452 | F60: 4851.695262
B61: 19 | C61: PARANÁ XISTO | D61: 2854.202561 | E61: 102.4180323 | F61: 3498.392525
B62: 20 | C62: BW MAROMBA | D62: 7806.553247 | E62: 99.52193548 | F62: 8432.527312
B63: 21 | C63: 3R POTIGUAR | D63: 15457.13138 | E63: 78.31741935 | F63: 15949.73307
B64: 22 | C64: PERENCO BRASIL | D64: 17096.1392 | E64: 77.35483871 | F64: 17582.68644
B65: 23 | C65: PETRORECÔNCAVO | D65: 2066.264672 | E65: 69.14241935 | F65: 2501.157352
B66: 24 | C66: CARMO | D66: 11723.0548 | E66: 58.49719355 | F66: 12090.99104
B67: 25 | C67: PRIO BRAVO | D67: 11652.46447 | E67: 45.65612903 | F67: 11939.63285
B68: 26 | C68: SEACREST NORTE CAP | D68: 6232.489744 | E68: 42.69474194 | F68: 6501.031559
B69: 27 | C69: SEACREST SPE CRICARÉ | D69: 1032.537644 | E69: 8.095516129 | F69: 1083.456903
B70: 28 | C70: CAPIXABA ENERGIA | D70: 313.7476937 | E70: 7.693483871 | F70: 362.1382455
B71: 29 | C71: PETROSYNERGY | D71: 339.1684681 | E71: 6.87983871 | F71: 382.4413464
B72: 30 | C72: PETROM | D72: 230.3498856 | E72: 4.746387097 | F72: 260.2037586
B73: 31 | C73: NÍON ENERGIA | D73: 139.4629426 | E73: 4.734580645 | F73: 169.2425553
B74: 32 | C74: MANDACARU ENERGIA | D74: 272.1148326 | E74: 0.4906129032 | F74: 275.2006946
B75: 33 | C75: BGM | D75: 156.651776 | E75: 0.2406451613 | F75: 158.1653883
B76: 34 | C76: PETROBORN | D76: 0 | E76: 21.73422581 | F76: 136.7041508
B77: 35 | C77: BARRA BONITA | D77: 0.5762277548 | E77: 20.71483871 | F77: 130.8686274
B78: 36 | C78: NOVA PETRÓLEO | D78: 95.41154817 | E78: 0.7089677419 | F78: 99.87082056
B79: 37 | C79: SLIM DRILLING | D79: 95.3115199 | E79: 0.4465806452 | F79: 98.12042731
B80: 38 | C80: IMETAME | D80: 53.49645723 | E80: 1.040129032 | F80: 60.03867122
B81: 39 | C81: PETRO-VICTORY | D81: 31.61136768 | E81: 3.156903226 | F81: 51.46768916
B82: 40 | C82: PERÍCIA | D82: 48.431537 | E82: 0.2138709677 | F82: 49.77674475
B83: 41 | C83: ENERGIZZI ENERGIAS | D83: 28.18747917 | E83: 0.5628064516 | F83: 31.72742482
B84: 42 | C84: NTF | D84: 22.98195125 | E84: 0.00635483871 | F84: 23.02192198
B85: 43 | C85: CREATIVE ENERGY | D85: 0 | E85: 3.468322581 | F85: 21.81509005
B86: 44 | C86: PHOENIX ÓLEO & GÁS | D86: 19.71327903 | E86: 0.07435483871 | F86: 20.18095683
B87: 45 | C87: RECÔNCAVO E&P | D87: 17.34628149 | E87: 0.3258709677 | F87: 19.39594797
B88: 46 | C88: GUTO & CACAL | D88: 9.795871832 | E88: 0.02096774194 | F88: 9.927754945
B89: 47 | C89: VIPETRO | D89: 8.008551307 | E89: 0.01909677419 | F89: 8.128666388
B90: 48 | C90: EPG BRASIL | D90: 4.938515335 | E90: 0.08290322581 | F90: 5.459960874
B91: 49 | C91: NORD | D91: 1.115934032 | E91: 0.001774193548 | F91: 1.127093373
B92: 50 | C92: BRASIL REFINARIAS | D92: 1.069064803 | E92: 0.002677419355 | F92: 1.085905262
B93: Total | D93: =SUM(D43:D92) -> 3448646.322 | E93: =SUM(E43:E92) -> 160760.8058 | F93: 4459801.246
B97: Tabela 8. Distribuição da produção de petróleo e gás natural por concessionário
B99: Nº | C99: Concessionário | D99: Petróleo (bbl/d) | E99: Gás Natural (Mm³/d) | F99: Produção Total (boe/d)
B100: 1 | C100: WESTLAWN ENERGIA | D100: 4007.810527 | E100: 29.72137419 | F100: 4194.752323
B101: 2 | C101: TRIDENT ENERGY | D101: 22698.85786 | E101: 395.1172258 | F101: 25184.07014
B102: 3 | C102: TOTALENERGIES EP | D102: 133751.0518 | E102: 8092.431903 | F102: 184650.9109
B103: 4 | C103: SPE TIÊTA | D103: 4137.116999 | E103: 108.7084516 | F103: 4820.872505
B104: 5 | C104: SPE MIRANGA | D104: 1466.924705 | E104: 754.3107097 | F104: 6211.39575
B105: 6 | C105: SHELL BRASIL | D105: 360793.7265 | E105: 19065.83691 | F105: 480714.2181
B106: 7 | C106: SEACREST SPE CRICARÉ | D106: 1032.537644 | E106: 8.095516129 | F106: 1083.456903
B107: 8 | C107: SEACREST NORTE CAP | D107: 6232.489744 | E107: 42.69474194 | F107: 6501.031559
B108: 9 | C108: REPSOL SINOPEC | D108: 44297.91117 | E108: 1877.405971 | F108: 56106.43802
B109: 10 | C109: QATARENERGY | D109: 12934.1062 | E109: 691.545559 | F109: 17283.79638
B110: 11 | C110: PRIO TIGRIS | D110: 38777.57213 | E110: 88.648 | F110: 39335.1512
B111: 12 | C111: PRIO BRAVO | D111: 17594.02321 | E111: 115.3666058 | F111: 18319.65724
B112: 13 | C112: PRIO | D112: 1041.160406 | E112: 2.318019355 | F112: 1055.740307
B113: 14 | C113: PPSA | D113: 122042.6164 | E113: 375.0478275 | F113: 124401.596
B114: 15 | C114: POTIGUAR E&P S.A. | D114: 8001.702495 | E114: 754.9863161 | F114: 12750.42298
B115: 16 | C115: PETRORECÔNCAVO | D115: 2066.264672 | E115: 69.14241935 | F115: 2501.157352
B116: 17 | C116: PETRONAS | D116: 38505.27824 | E116: 984.9590429 | F116: 44700.48347
B117: 18 | C117: PETROGAL BRASIL | D117: 89067.80453 | E117: 4369.266039 | F117: 116549.6578
B118: 19 | C118: PETROBRAS | D118: 2104662.445 | E118: 102272.7943 | F118: 2747938.889
B119: 20 | C119: PETRO RIO JAGUAR | D119: 55498.51181 | E119: 691.8253813 | F119: 59849.96201
B120: 21 | C120: PERENCO BRASIL | D120: 17096.1392 | E120: 77.35483871 | F120: 17582.68644
B121: 22 | C121: PARANÁ XISTO | D121: 2854.202561 | E121: 102.4180323 | F121: 3498.392525
B122: 23 | C122: ORIGEM ALAGOAS | D122: 3349.598142 | E122: 1739.436387 | F122: 14290.32252
B123: 24 | C123: ONGC CAMPOS | D123: 7669.025381 | E123: 82.19769387 | F123: 8186.033258
B124: 25 | C124: NOVA TÉCNICA | D124: 5063.16887 | E124: 41.27660081 | F124: 5322.790846
B125: 26 | C125: KAROON BRASIL | D125: 23946.08559 | E125: 197.5372258 | F125: 25188.55721
B126: 27 | C126: EQUINOR ENERGY | D126: 23491.44742 | E126: 574.2038548 | F126: 27103.08057
B127: 28 | C127: EQUINOR BRASIL | D127: 58166.35819 | E127: 132.972 | F127: 59002.72681
B128: 29 | C128: ENEVA | D128: 289.3365353 | E128: 4474.724 | F128: 28434.5003
B129: 30 | C129: ENAUTA ENERGIA | D129: 16031.24211 | E129: 118.8854968 | F129: 16779.00929
B130: 31 | C130: ENAUTA | D130: 6532.873472 | E130: 70.02025774 | F130: 6973.28759
B131: 32 | C131: CNOOC PETROLEUM | D131: 81541.93851 | E131: 4905.491524 | F131: 112396.5482
B132: 33 | C132: CNODC BRASIL | D132: 57777.71101 | E132: 3856.038464 | F132: 82031.4603
B133: 34 | C133: CARMO | D133: 11723.0548 | E133: 58.49719355 | F133: 12090.99104
B134: 35 | C134: BW MAROMBA | D134: 7806.553247 | E134: 99.52193548 | F134: 8432.527312
B135: 36 | C135: ALVOPETRO | D135: 61.89335358 | E135: 257.6699355 | F135: 1682.58829
B136: 37 | C136: 3R RNCE | D136: 6814.745166 | E136: 191.6934839 | F136: 8020.460758
B137: 38 | C137: 3R POTIGUAR | D137: 15457.13138 | E137: 78.31741935 | F137: 15949.73307
B138: 39 | C138: 3R PETROLEUM OFF | D138: 8530.311082 | E138: 498.5940121 | F138: 11666.37269
B139: 40 | C139: 3R BAHIA | D139: 3304.358136 | E139: 895.5554903 | F139: 8937.232014
B140: 41 | C140: RECÔNCAVO ENERGIA SP | D140: 8.809994839 | E140: 149.0193226 | F140: 946.1132202
B141: 42 | C141: SHB | D141: 606.3479506 | E141: 28.61273226 | F141: 786.3166001
B142: 43 | C142: PETROSYNERGY | D142: 339.1684681 | E142: 6.87983871 | F142: 382.4413464
B143: 44 | C143: CAPIXABA ENERGIA | D143: 313.7476937 | E143: 7.693483871 | F143: 362.1382455
B144: 45 | C144: 3R PESCADA | D144: 80.29764198 | E144: 39.96567581 | F144: 331.6741493
B145: 46 | C145: PETROM | D145: 230.3498856 | E145: 4.746387097 | F145: 260.2037586
B146: 47 | C146: NÍON ENERGIA | D146: 139.4629426 | E146: 4.734580645 | F146: 169.2425553
B147: 48 | C147: MANDACARU ENERGIA | D147: 144.8475272 | E147: 0.3432096774 | F147: 147.0062509
B148: 49 | C148: PETROBORN | D148: 0 | E148: 21.73422581 | F148: 136.7041508
B149: 50 | C149: BARRA BONITA | D149: 0.5762277548 | E149: 20.71483871 | F149: 130.8686274
B150: 51 | C150: BGM | D150: 103.6345516 | E150: 0.1462467742 | F150: 104.554416
B151: 52 | C151: NOVA PETRÓLEO | D151: 95.41154817 | E151: 0.7089677419 | F151: 99.87082056
B152: 53 | C152: CAMPO PETRÓLEO | D152: 53.01722443 | E152: 0.0943983871 | F152: 53.61097235
B153: 54 | C153: GEOPAR - GEOSOL | D153: 50.90424392 | E153: 0.2679483871 | F153: 52.58958836
B154: 55 | C154: PETRO-VICTORY | D154: 31.61136768 | E154: 3.156903226 | F154: 51.46768916
B155: 56 | C155: SLIM DRILLING | D155: 44.40727598 | E155: 0.1786322581 | F155: 45.53083895
B156: 57 | C156: ENERGIZZI ENERGIAS | D156: 28.18747917 | E156: 0.5628064516 | F156: 31.72742482
B157: 58 | C157: IMETAME | D157: 26.74822861 | E157: 0.5200645161 | F157: 30.01933561
B158: 59 | C158: IPI | D158: 26.74822861 | E158: 0.5200645161 | F158: 30.01933561
B159: 60 | C159: ANDORINHA PETRÓLEO | D159: 24.2157685 | E159: 0.1069354839 | F159: 24.88837238
B160: 61 | C160: PERÍCIA | D160: 24.2157685 | E160: 0.1069354839 | F160: 24.88837238
B161: 62 | C161: CREATIVE ENERGY | D161: 0 | E161: 3.468322581 | F161: 21.81509005
B162: 63 | C162: PHOENIX ÓLEO & GÁS | D162: 19.71327903 | E162: 0.07435483871 | F162: 20.18095683
B163: 64 | C163: RECÔNCAVO E&P | D163: 17.34628149 | E163: 0.3258709677 | F163: 19.39594797
B164: 65 | C164: NTF | D164: 11.49097563 | E164: 0.003177419355 | F164: 11.51096099
B165: =B164+1 -> 66 | C165: GUTO & CACAL | D165: 9.795871832 | E165: 0.02096774194 | F165: 9.927754945
B166: =B165+1 -> 67 | C166: VIPETRO | D166: 8.008551307 | E166: 0.01909677419 | F166: 8.128666388
B167: 68 | C167: SONANGOL GUANAMBI | D167: 5.884867974 | E167: 0.1839935484 | F167: 7.042152435
B168: 69 | C168: GEOFLUX | D168: 5.745487814 | E168: 0.001588709677 | F168: 5.755480496
B169: 70 | C169: NEWO | D169: 5.745487814 | E169: 0.001588709677 | F169: 5.755480496
B170: 71 | C170: EPG BRASIL | D170: 4.938515335 | E170: 0.08290322581 | F170: 5.459960874
B171: =B170+1 -> 72 | C171: NORD | D171: 1.115934032 | E171: 0.001774193548 | F171: 1.127093373
B172: 73 | C172: BRASIL REFINARIAS | D172: 1.069064803 | E172: 0.002677419355 | F172: 1.085905262
B173: Total | D173: =SUM(D100:D172) -> 3428580.65 | E173: =SUM(E100:E172) -> 159537.6287 | F173: =SUM(F100:F172) -> 4432042.022
B175: Tabela 9. Movimentação de gás natural por destinação (Mm³/d)
B177: Bacia | C177: Consumo Interno | D177: Queima | E177: Disponível | F177: Injeção | G177: Injeção descontando CO2 | H177: Produção | I177: Produção descontando CO2
B178: Santos | C178: 10483.76261 | D178: 2582.206806 | E178: 30913.28565 | F178: 81746.45513 | G178: 81724.58803 | H178: 125725.7102 | I178: 96493.54682
B179: Solimões | C179: 411.9109032 | D179: 110.5623871 | E179: 6767.559452 | F179: 5712.186065 | G179: 5712.184129 | H179: 13002.21881 | I179: 12978.91709
B180: Campos | C180: 5222.318774 | D180: 1426.399742 | E180: 4539.669774 | F180: 0 | G180: 0 | H180: 11188.38829 | I180: 10995.63637
B181: Parnaíba | C181: 57.71412903 | D181: 22.91125806 | E181: 3738.25529 | F181: 0 | G181: 0 | H181: 3818.880677 | I181: 3818.880677
B182: Recôncavo | C182: 116.6734194 | D182: 95.25283871 | E182: 2122.762742 | F182: 315.9573871 | G182: 315.885129 | H182: 2650.646387 | I182: 2632.787417
B183: Alagoas | C183: 21.92945161 | D183: 11.4916129 | E183: 1710.564355 | F183: 0 | G183: 0 | H183: 1743.985419 | I183: 1731.263707
B184: Potiguar | C184: 377.9719355 | D184: 118.0387097 | E184: 676.9007097 | F184: 0 | G184: 0 | H184: 1172.911355 | I184: 1168.580179
B185: Amazonas | C185: 1.111741935 | D185: 5.541677419 | E185: 649.1899032 | F185: 0 | G185: 0 | H185: 655.8433226 | I185: 655.8433226
B186: Espírito Santo | C186: 270.6731613 | D186: 50.37812903 | E186: 268.2238065 | F186: 0 | G186: 0 | H186: 589.2750968 | I186: 582.2072291
B187: Paraná | C187: 66.58916129 | D187: 1.612903226 | E187: 54.93080645 | F187: 0 | G187: 0 | H187: 123.132871 | I187: 123.0852268
B188: Sergipe | C188: 2.967870968 | D188: 47.9023871 | E188: 1.172354839 | F188: 12.8953871 | G188: 12.8953871 | H188: 64.938 | I188: 64.83690195
B189: Tucano Sul | C189: 0 | D189: 0 | E189: 21.73422581 | F189: 0 | G189: 0 | H189: 21.73422581 | I189: 21.73422581
B190: Barreirinhas | C190: 0 | D190: 3.141129032 | E190: 0 | F190: 0 | G190: 0 | H190: 3.141129032 | I190: 3.141129032
B191: Camamu | C191: 0 | D191: 0 | E191: 0 | F191: 0 | G191: 0 | H191: 0 | I191: 0
B192: Ceará | C192: 0 | D192: 0 | E192: 0 | F192: 0 | G192: 0 | H192: 0 | I192: 0
B193: Cumuruxatiba | C193: 0 | D193: 0 | E193: 0 | F193: 0 | G193: 0 | H193: 0 | I193: 0
B194: Mucuri | C194: 0 | D194: 0 | E194: 0 | F194: 0 | G194: 0 | H194: 0 | I194: 0
B195: Total | C195: =SUM(C178:C194) -> 17033.62316 | D195: =SUM(D178:D194) -> 4475.439581 | E195: 51464.24906 | F195: 87787.49397 | G195: 87765.55268 | H195: 160760.8058 | I195: 131270.4603
B196: Tabela 10. Distribuição da produção dos campos do Pré-sal¹
B198: Campo | C198: Petróleo (bbl/d) Pré Sal | D198: Petróleo (bbl/d) Pós Sal | E198: Gás natural (Mm³/d) Pré Sal | F198: Gás natural (Mm³/d) Pós Sal | G198: Produção (boe/d) Pré Sal | H198: Produção (boe/d) Pós Sal
B199: Tupi | C199: 788490.2407 | D199: 0 | E199: 40491.7899 | F199: 0 | G199: 1043175.906 | H199: 0
B200: Búzios | C200: 652441.5399 | D200: 0 | E200: 28473.35658 | F200: 0 | G200: 831533.5428 | H200: 0
B201: Mero | C201: 424480.0007 | D201: 0 | E201: 28065.85403 | F201: 0 | G201: 601008.89 | H201: 0
B202: Sépia | C202: 129223.681 | D202: 0 | E202: 5228.553258 | F202: 0 | G202: 162110.2876 | H202: 0
B203: Sapinhoá | C203: 118936.1167 | D203: 0 | E203: 5644.937903 | F203: 0 | G203: 154441.7035 | H203: 0
B204: Atapu | C204: 99935.12068 | D204: 0 | E204: 3520.913774 | F204: 0 | G204: 122080.9993 | H204: 0
B205: Itapu | C205: 81507.9538 | D205: 0 | E205: 1117.872484 | F205: 0 | G205: 88539.15933 | H205: 0
B206: Itapu_Eco | C206: 76123.2712 | D206: 0 | E206: 1044.022194 | F206: 0 | G206: 82689.97243 | H206: 0
B207: Jubarte | C207: 58628.81497 | D207: 65070.91831 | E207: 2164.951161 | F207: 713.5108387 | G207: 72245.94643 | H207: 69558.76592
B208: Sul de Tupi | C208: 46886.3699 | D208: 0 | E208: 2195.323387 | F208: 0 | G208: 60694.53689 | H208: 0
B209: Lapa | C209: 44696.44087 | D209: 0 | E209: 1512.713323 | F209: 0 | G209: 54211.12025 | H209: 0
B210: Berbigão | C210: 45955.13675 | D210: 0 | E210: 1034.147129 | F210: 0 | G210: 52459.7257 | H210: 0
B211: Oeste de Atapu | C211: 20752.70016 | D211: 0 | E211: 731.1590968 | F211: 0 | G211: 25351.55196 | H211: 0
B212: Sépia Leste | C212: 17739.98383 | D212: 0 | E212: 717.782129 | F212: 0 | G212: 22254.69705 | H212: 0
B213: Anc_Mero | C213: 15395.64869 | D213: 0 | E213: 1017.932323 | F213: 0 | G213: 21798.24959 | H213: 0
B214: Marlim Leste | C214: 18597.82769 | D214: 35379.9047 | E214: 325.2706129 | F214: 597.507129 | G214: 20643.71804 | H214: 39138.11102
B215: Barracuda | C215: 9225.136705 | D215: 10197.784 | E215: 164.8542581 | F215: 238.8993871 | G215: 10262.03867 | H215: 11700.41575
B216: Sul de Berbigão | C216: 6429.631056 | D216: 0 | E216: 597.2586129 | F216: 0 | G216: 10186.27425 | H216: 0
... 12 more rows

Sheet 3. Ranking
B2: 3. RANKING DA PRODUÇÃO
B6: Tabela 11. Os 30 poços com maior produção de petróleo (bbl/d)
B8: Nº | C8: Poço | D8: Campo | E8: Bacia | F8: Localização | G8: Petróleo (bbl/d)
B9: 1 | C9: 9-BRSA-1254-RJS | D9: Sépia / Sépia Leste / Sépia_Eco | E9: Santos | F9: Mar | G9: 48666.29543
B10: 2 | C10: 7-BUZ-18-RJS | D10: Búzios / Búzios_Eco / Tambuatá | E10: Santos | F10: Mar | G10: 46559.80824
B11: 3 | C11: 7-BUZ-23-RJS | D11: Búzios / Búzios_Eco / Tambuatá | E11: Santos | F11: Mar | G11: 44888.79482
B12: 4 | C12: 3-BRSA-1255-RJS | D12: Anc_Mero / Mero | E12: Santos | F12: Mar | G12: 44806.45776
B13: 5 | C13: 3-BRSA-1322-RJS | D13: Anc_Mero / Mero | E13: Santos | F13: Mar | G13: 44143.94659
B14: 6 | C14: 7-MRO-18D-RJS | D14: Anc_Mero / Mero | E14: Santos | F14: Mar | G14: 44116.78801
B15: 7 | C15: 7-BUZ-12-RJS | D15: Búzios / Búzios_Eco / Tambuatá | E15: Santos | F15: Mar | G15: 44104.78177
B16: 8 | C16: 7-MRO-7A-RJS | D16: Anc_Mero / Mero | E16: Santos | F16: Mar | G16: 42605.61347
B17: 9 | C17: 7-ITP-5D-RJS | D17: Itapu / Itapu_Eco | E17: Santos | F17: Mar | G17: 41772.43136
B18: 10 | C18: 7-MRO-17A-RJS | D18: Anc_Mero / Mero | E18: Santos | F18: Mar | G18: 41022.3914
B19: 11 | C19: 7-MRO-6DB-RJS | D19: Anc_Mero / Mero | E19: Santos | F19: Mar | G19: 40834.07794
B20: 12 | C20: 7-BUZ-30-RJS | D20: Búzios / Búzios_Eco / Tambuatá | E20: Santos | F20: Mar | G20: 39404.81763
B21: 13 | C21: 9-ITP-1-RJS | D21: Itapu / Itapu_Eco | E21: Santos | F21: Mar | G21: 38628.98174
B22: 14 | C22: 3-BRSA-1345-RJS | D22: Anc_Mero / Mero | E22: Santos | F22: Mar | G22: 38474.99441
B23: 15 | C23: 7-ATP-6-RJS | D23: Atapu / Atapu_Eco / Anc_Norte_Atapu / Oeste De Atapu | E23: Santos | F23: Mar | G23: 38449.7398
B24: 16 | C24: 3-BRSA-1201-RJS | D24: Sépia / Sépia Leste / Sépia_Eco | E24: Santos | F24: Mar | G24: 37788.3042
B25: 17 | C25: 3-BRSA-944A-RJS | D25: Búzios / Búzios_Eco / Tambuatá | E25: Santos | F25: Mar | G25: 37084.80619
B26: 18 | C26: 9-ATP-1-RJS | D26: Atapu / Atapu_Eco / Anc_Norte_Atapu / Oeste De Atapu | E26: Santos | F26: Mar | G26: 35896.32083
B27: 19 | C27: 9-BUZ-4-RJS | D27: Búzios / Búzios_Eco / Tambuatá | E27: Santos | F27: Mar | G27: 35749.04635
B28: 20 | C28: 7-BUZ-25-RJS | D28: Búzios / Búzios_Eco / Tambuatá | E28: Santos | F28: Mar | G28: 35142.12817
B29: 21 | C29: 7-BUZ-33-RJS | D29: Búzios / Búzios_Eco / Tambuatá | E29: Santos | F29: Mar | G29: 33827.14702
B30: 22 | C30: 7-MRO-16D-RJS | D30: Anc_Mero / Mero | E30: Santos | F30: Mar | G30: 33528.52774
B31: 23 | C31: 7-BUZ-24D-RJS | D31: Búzios / Búzios_Eco / Tambuatá | E31: Santos | F31: Mar | G31: 32148.09056
B32: 24 | C32: 7-BUZ-14DA-RJS | D32: Búzios / Búzios_Eco / Tambuatá | E32: Santos | F32: Mar | G32: 32079.15302
B33: 25 | C33: 7-MRO-27D-RJS | D33: Anc_Mero / Mero | E33: Santos | F33: Mar | G33: 31658.95983
B34: 26 | C34: 7-TUP-121DA-RJS | D34: Tupi | E34: Santos | F34: Mar | G34: 31544.32297
B35: 27 | C35: 7-SEP-6-RJS | D35: Sépia / Sépia Leste / Sépia_Eco | E35: Santos | F35: Mar | G35: 31415.78806
B36: 28 | C36: 7-ITP-4-RJS | D36: Itapu / Itapu_Eco | E36: Santos | F36: Mar | G36: 30165.13462
B37: 29 | C37: 7-BUZ-45DA-RJS | D37: Búzios / Búzios_Eco / Tambuatá | E37: Santos | F37: Mar | G37: 29675.17871
B38: 30 | C38: 1-BRSA-976-RJS | D38: Sépia / Sépia Leste / Sépia_Eco | E38: Santos | F38: Mar | G38: 29093.27714
B41: Tabela 12. Os 30 poços com maior produção de gás natural (Mm³/d)
B43: Nº | C43: Poço | D43: Campo | E43: Bacia | F43: Localização | G43: Gás natural (Mm³/d)
B44: 1 | C44: 3-BRSA-1255-RJS | D44: Anc_Mero / Mero | E44: Santos | F44: Mar | G44: 2957.357161
B45: 2 | C45: 3-BRSA-1322-RJS | D45: Anc_Mero / Mero | E45: Santos | F45: Mar | G45: 2923.567871
B46: 3 | C46: 7-MRO-18D-RJS | D46: Anc_Mero / Mero | E46: Santos | F46: Mar | G46: 2844.178645
B47: 4 | C47: 7-MRO-7A-RJS | D47: Anc_Mero / Mero | E47: Santos | F47: Mar | G47: 2810.471613
B48: 5 | C48: 7-MRO-17A-RJS | D48: Anc_Mero / Mero | E48: Santos | F48: Mar | G48: 2788.296871
B49: 6 | C49: 7-MRO-6DB-RJS | D49: Anc_Mero / Mero | E49: Santos | F49: Mar | G49: 2707.578871
B50: 7 | C50: 3-BRSA-1345-RJS | D50: Anc_Mero / Mero | E50: Santos | F50: Mar | G50: 2531.957516
B51: 8 | C51: 7-MRO-16D-RJS | D51: Anc_Mero / Mero | E51: Santos | F51: Mar | G51: 2275.291935
B52: 9 | C52: 7-BUZ-23-RJS | D52: Búzios / Búzios_Eco / Tambuatá | E52: Santos | F52: Mar | G52: 2099.017839
B53: 10 | C53: 9-LL-2-RJS | D53: Tupi | E53: Santos | F53: Mar | G53: 2080.984871
B54: 11 | C54: 7-MRO-27D-RJS | D54: Anc_Mero / Mero | E54: Santos | F54: Mar | G54: 2076.109323
B55: 12 | C55: 7-LL-36A-RJS | D55: Tupi | E55: Santos | F55: Mar | G55: 2039.82271
B56: 13 | C56: 7-BUZ-18-RJS | D56: Búzios / Búzios_Eco / Tambuatá | E56: Santos | F56: Mar | G56: 1990.759419
B57: 14 | C57: 3-BRSA-1201-RJS | D57: Sépia / Sépia Leste / Sépia_Eco | E57: Santos | F57: Mar | G57: 1876.183935
B58: 15 | C58: 1-BRSA-976-RJS | D58: Sépia / Sépia Leste / Sépia_Eco | E58: Santos | F58: Mar | G58: 1714.101839
B59: 16 | C59: 7-BUZ-12-RJS | D59: Búzios / Búzios_Eco / Tambuatá | E59: Santos | F59: Mar | G59: 1711.981806
B60: 17 | C60: 9-LL-20D-RJS | D60: Tupi | E60: Santos | F60: Mar | G60: 1705.990548
B61: 18 | C61: 7-BUZ-24D-RJS | D61: Búzios / Búzios_Eco / Tambuatá | E61: Santos | F61: Mar | G61: 1699.186516
B62: 19 | C62: 9-BUZ-3-RJS | D62: Búzios / Búzios_Eco / Tambuatá | E62: Santos | F62: Mar | G62: 1636.506645
B63: 20 | C63: 7-TUP-121DA-RJS | D63: Tupi | E63: Santos | F63: Mar | G63: 1577.061452
B64: 21 | C64: 7-BUZ-30-RJS | D64: Búzios / Búzios_Eco / Tambuatá | E64: Santos | F64: Mar | G64: 1534.957065
B65: 22 | C65: 9-BUZ-4-RJS | D65: Búzios / Búzios_Eco / Tambuatá | E65: Santos | F65: Mar | G65: 1527.689871
B66: 23 | C66: 7-BUZ-29D-RJS | D66: Búzios / Búzios_Eco / Tambuatá | E66: Santos | F66: Mar | G66: 1476.617839
B67: 24 | C67: 9-BRSA-1254-RJS | D67: Sépia / Sépia Leste / Sépia_Eco | E67: Santos | F67: Mar | G67: 1436.593194
B68: 25 | C68: 7-SLL-3-RJS | D68: Anc_Tupi / Sul De Tupi / Tupi | E68: Santos | F68: Mar | G68: 1413.241774
B69: 26 | C69: 3-BRSA-944A-RJS | D69: Búzios / Búzios_Eco / Tambuatá | E69: Santos | F69: Mar | G69: 1412.687613
B70: 27 | C70: 3-BRSA-1355D-RJS | D70: Anc_Mero / Mero | E70: Santos | F70: Mar | G70: 1376.163871
B71: 28 | C71: 7-ATP-6-RJS | D71: Atapu / Atapu_Eco / Anc_Norte_Atapu / Oeste De Atapu | E71: Santos | F71: Mar | G71: 1351.212258
B72: 29 | C72: 7-BUZ-25-RJS | D72: Búzios / Búzios_Eco / Tambuatá | E72: Santos | F72: Mar | G72: 1336.710903
B73: 30 | C73: 7-BUZ-33-RJS | D73: Búzios / Búzios_Eco / Tambuatá | E73: Santos | F73: Mar | G73: 1318.527548
B76: Tabela 13. Os 30 poços com maior produção total (boe/d)
B78: Nº | C78: Poço | D78: Campo | E78: Bacia | F78: Localização | G78: Produção (boe/d)
B79: 1 | C79: 3-BRSA-1255-RJS | D79: Anc_Mero / Mero | E79: Santos | F79: Mar | G79: 63407.67241
B80: 2 | C80: 3-BRSA-1322-RJS | D80: Anc_Mero / Mero | E80: Santos | F80: Mar | G80: 62532.63302
B81: 3 | C81: 7-MRO-18D-RJS | D81: Anc_Mero / Mero | E81: Santos | F81: Mar | G81: 62006.13129
B82: 4 | C82: 7-MRO-7A-RJS | D82: Anc_Mero / Mero | E82: Santos | F82: Mar | G82: 60282.94593
B83: 5 | C83: 7-BUZ-18-RJS | D83: Búzios / Búzios_Eco / Tambuatá | E83: Santos | F83: Mar | G83: 59081.30674
B84: 6 | C84: 7-MRO-17A-RJS | D84: Anc_Mero / Mero | E84: Santos | F84: Mar | G84: 58560.24894
B85: 7 | C85: 7-BUZ-23-RJS | D85: Búzios / Búzios_Eco / Tambuatá | E85: Santos | F85: Mar | G85: 58091.21821
B86: 8 | C86: 7-MRO-6DB-RJS | D86: Anc_Mero / Mero | E86: Santos | F86: Mar | G86: 57864.23459
B87: 9 | C87: 9-BRSA-1254-RJS | D87: Sépia / Sépia Leste / Sépia_Eco | E87: Santos | F87: Mar | G87: 57702.19367
B88: 10 | C88: 7-BUZ-12-RJS | D88: Búzios / Búzios_Eco / Tambuatá | E88: Santos | F88: Mar | G88: 54872.82206
B89: 11 | C89: 3-BRSA-1345-RJS | D89: Anc_Mero / Mero | E89: Santos | F89: Mar | G89: 54400.52611
B90: 12 | C90: 3-BRSA-1201-RJS | D90: Sépia / Sépia Leste / Sépia_Eco | E90: Santos | F90: Mar | G90: 49589.14468
B91: 13 | C91: 7-BUZ-30-RJS | D91: Búzios / Búzios_Eco / Tambuatá | E91: Santos | F91: Mar | G91: 49059.40592
B92: 14 | C92: 7-MRO-16D-RJS | D92: Anc_Mero / Mero | E92: Santos | F92: Mar | G92: 47839.6817
B93: 15 | C93: 7-ATP-6-RJS | D93: Atapu / Atapu_Eco / Anc_Norte_Atapu / Oeste De Atapu | E93: Santos | F93: Mar | G93: 46948.60818
B94: 16 | C94: 3-BRSA-944A-RJS | D94: Búzios / Búzios_Eco / Tambuatá | E94: Santos | F94: Mar | G94: 45970.34287
B95: 17 | C95: 7-ITP-5D-RJS | D95: Itapu / Itapu_Eco | E95: Santos | F95: Mar | G95: 45371.88064
B96: 18 | C96: 9-BUZ-4-RJS | D96: Búzios / Búzios_Eco / Tambuatá | E96: Santos | F96: Mar | G96: 45357.92537
B97: 19 | C97: 7-MRO-27D-RJS | D97: Anc_Mero / Mero | E97: Santos | F97: Mar | G97: 44717.29301
B98: 20 | C98: 9-ATP-1-RJS | D98: Atapu / Atapu_Eco / Anc_Norte_Atapu / Oeste De Atapu | E98: Santos | F98: Mar | G98: 43636.04403
B99: 21 | C99: 7-BUZ-25-RJS | D99: Búzios / Búzios_Eco / Tambuatá | E99: Santos | F99: Mar | G99: 43549.78578
B100: 22 | C100: 7-BUZ-24D-RJS | D100: Búzios / Búzios_Eco / Tambuatá | E100: Santos | F100: Mar | G100: 42835.6509
B101: 23 | C101: 7-BUZ-33-RJS | D101: Búzios / Búzios_Eco / Tambuatá | E101: Santos | F101: Mar | G101: 42120.43478
B102: 24 | C102: 9-ITP-1-RJS | D102: Itapu / Itapu_Eco | E102: Santos | F102: Mar | G102: 41867.83256
B103: 25 | C103: 9-LL-2-RJS | D103: Tupi | E103: Santos | F103: Mar | G103: 41660.04584
B104: 26 | C104: 7-TUP-121DA-RJS | D104: Tupi | E104: Santos | F104: Mar | G104: 41463.73986
B105: 27 | C105: 7-BUZ-14DA-RJS | D105: Búzios / Búzios_Eco / Tambuatá | E105: Santos | F105: Mar | G105: 40288.55947
B106: 28 | C106: 1-BRSA-976-RJS | D106: Sépia / Sépia Leste / Sépia_Eco | E106: Santos | F106: Mar | G106: 39874.65203
B107: 29 | C107: 9-LL-20D-RJS | D107: Tupi | E107: Santos | F107: Mar | G107: 38075.32628
B108: 30 | C108: 7-SEP-6-RJS | D108: Sépia / Sépia Leste / Sépia_Eco | E108: Santos | F108: Mar | G108: 37198.99425
B110: Tabela 14. Os 30 poços terrestres com maior produção de petróleo (bbl/d)
B112: Nº | C112: Poço | D112: Campo | E112: Bacia | F112: Localização | G112: Petróleo (bbl/d)
B113: 1 | C113: 7-TIE-11DP-BA | D113: Tiê | E113: Recôncavo | F113: Terra | G113: 1221.965823
B114: 2 | C114: 1-BRSA-769-AM | D114: Arara Azul | E114: Solimões | F114: Terra | G114: 1212.78473
B115: 3 | C115: 7-TIE-13D-BA | D115: Tiê | E115: Recôncavo | F115: Terra | G115: 1158.757494
B116: 4 | C116: 3-ORGM-2D-AL | D116: Pilar | E116: Alagoas | F116: Terra | G116: 904.6794012
B117: 5 | C117: 8-TIE-9D-BA | D117: Tiê | E117: Recôncavo | F117: Terra | G117: 480.9736548
B118: 6 | C118: 7-CNC-9-ES | D118: Cancã | E118: Espírito Santo | F118: Terra | G118: 435.7018343
B119: 7 | C119: 3-BRSA-1218-AM | D119: Sudoeste Urucu | E119: Solimões | F119: Terra | G119: 434.7662758
B120: 8 | C120: 7-TIE-2DB-BA | D120: Tiê | E120: Recôncavo | F120: Terra | G120: 414.0622502
B121: 9 | C121: 7-TIE-1D-BA | D121: Tiê | E121: Recôncavo | F121: Terra | G121: 409.791875
B122: 10 | C122: 9-RUC-75D-AM | D122: Rio Urucu | E122: Solimões | F122: Terra | G122: 363.9574209
B123: 11 | C123: 9-RUC-97DP-AM | D123: Rio Urucu | E123: Solimões | F123: Terra | G123: 343.4879444
B124: 12 | C124: 7-LUC-42HP-AM | D124: Leste Do Urucu | E124: Solimões | F124: Terra | G124: 339.2471922
B125: 13 | C125: 4-SMT-3-AM | D125: Araracanga | E125: Solimões | F125: Terra | G125: 318.3335739
B126: 14 | C126: 7-LUC-65HP-AM | D126: Leste Do Urucu | E126: Solimões | F126: Terra | G126: 303.2915947
B127: 15 | C127: 7-MA-34D-RN | D127: Macau | E127: Potiguar | F127: Terra | G127: 297.9529663
B128: 16 | C128: 1-SUC-1-AM | D128: Sudoeste Urucu | E128: Solimões | F128: Terra | G128: 273.8218059
B129: 17 | C129: 7-LUC-88HP-AM | D129: Leste Do Urucu | E129: Solimões | F129: Terra | G129: 269.3945913
B130: 18 | C130: 7-LUC-63HP-AM | D130: Leste Do Urucu | E130: Solimões | F130: Terra | G130: 268.7453206
B131: 19 | C131: 7-LUC-50HP-AM | D131: Leste Do Urucu | E131: Solimões | F131: Terra | G131: 263.2987509
B132: 20 | C132: 7-BR-47-RN | D132: Brejinho Rn | E132: Potiguar | F132: Terra | G132: 233.2701835
B133: 21 | C133: 4-LUC-3-AM | D133: Leste Do Urucu | E133: Solimões | F133: Terra | G133: 227.2086327
B134: 22 | C134: 1-SMT-2-AM | D134: Araracanga | E134: Solimões | F134: Terra | G134: 226.652086
B135: 23 | C135: 7-LUC-24DP-AM | D135: Leste Do Urucu | E135: Solimões | F135: Terra | G135: 216.9734887
B136: 24 | C136: 7-LUC-29H-AM | D136: Leste Do Urucu | E136: Solimões | F136: Terra | G136: 215.480166
B137: 25 | C137: 7-C-207-BA | D137: Candeias | E137: Recôncavo | F137: Terra | G137: 210.7120843
B138: 26 | C138: 7-LUC-25-AM | D138: Leste Do Urucu | E138: Solimões | F138: Terra | G138: 207.6941928
B139: 27 | C139: 7-SUC-6D-AM | D139: Sudoeste Urucu | E139: Solimões | F139: Terra | G139: 203.4528319
B140: 28 | C140: 7-LUC-71HP-AM | D140: Leste Do Urucu | E140: Solimões | F140: Terra | G140: 203.0620521
B141: 29 | C141: 7-LUC-57HP-AM | D141: Leste Do Urucu | E141: Solimões | F141: Terra | G141: 199.4374984
B142: 30 | C142: 7-RUC-58HP-AM | D142: Rio Urucu | E142: Solimões | F142: Terra | G142: 198.6042
B145: Tabela 15. Os 30 poços terrestres com maior produção de gás natural (Mm³/d)
B147: Nº | C147: Poço | D147: Campo | E147: Bacia | F147: Localização | G147: Gás natural (Mm³/d)
B148: 1 | C148: 9-RUC-75D-AM | D148: Rio Urucu | E148: Solimões | F148: Terra | G148: 570.602129
B149: 2 | C149: 9-RUC-97DP-AM | D149: Rio Urucu | E149: Solimões | F149: Terra | G149: 492.0295484
B150: 3 | C150: 1-BRSA-769-AM | D150: Arara Azul | E150: Solimões | F150: Terra | G150: 428.0941935
B151: 4 | C151: 4-SMT-3-AM | D151: Araracanga | E151: Solimões | F151: Terra | G151: 421.9694194
B152: 5 | C152: 7-RUC-58HP-AM | D152: Rio Urucu | E152: Solimões | F152: Terra | G152: 397.689871
B153: 6 | C153: 7-LUC-42HP-AM | D153: Leste Do Urucu | E153: Solimões | F153: Terra | G153: 397.5862258
B154: 7 | C154: 7-AZU-4DA-AM | D154: Azulão | E154: Amazonas | F154: Terra | G154: 396.5779677
B155: 8 | C155: 7-RUC-62HP-AM | D155: Rio Urucu | E155: Solimões | F155: Terra | G155: 371.6696452
B156: 9 | C156: 7-LUC-65HP-AM | D156: Leste Do Urucu | E156: Solimões | F156: Terra | G156: 367.5038065
B157: 10 | C157: 7-RUC-96HP-AM | D157: Rio Urucu | E157: Solimões | F157: Terra | G157: 359.725
B158: 11 | C158: 7-RUC-83H-AM | D158: Rio Urucu | E158: Solimões | F158: Terra | G158: 353.4888065
B159: 12 | C159: 7-LUC-88HP-AM | D159: Leste Do Urucu | E159: Solimões | F159: Terra | G159: 353.0212258
B160: 13 | C160: 9-RUC-104DP-AM | D160: Rio Urucu | E160: Solimões | F160: Terra | G160: 347.1051613
B161: 14 | C161: 1-SMT-2-AM | D161: Araracanga | E161: Solimões | F161: Terra | G161: 346.961871
B162: 15 | C162: 7-LUC-71HP-AM | D162: Leste Do Urucu | E162: Solimões | F162: Terra | G162: 343.5724194
B163: 16 | C163: 7-LUC-57HP-AM | D163: Leste Do Urucu | E163: Solimões | F163: Terra | G163: 328.1035806
B164: 17 | C164: 7-LUC-80DP-AM | D164: Leste Do Urucu | E164: Solimões | F164: Terra | G164: 300.1483226
B165: 18 | C165: 7-LUC-17-AM | D165: Leste Do Urucu | E165: Solimões | F165: Terra | G165: 299.9662903
B166: 19 | C166: 7-RUC-92DP-AM | D166: Rio Urucu | E166: Solimões | F166: Terra | G166: 283.0775161
B167: 20 | C167: 7-RUC-59DP-AM | D167: Rio Urucu | E167: Solimões | F167: Terra | G167: 262.524129
B168: 21 | C168: 7-LUC-29H-AM | D168: Leste Do Urucu | E168: Solimões | F168: Terra | G168: 258.5554839
B169: 22 | C169: 4-RUC-10-AM | D169: Rio Urucu | E169: Solimões | F169: Terra | G169: 256.5760323
B170: 23 | C170: 7-LUC-63HP-AM | D170: Leste Do Urucu | E170: Solimões | F170: Terra | G170: 254.4355484
B171: 24 | C171: 7-LUC-22DP-AM | D171: Leste Do Urucu | E171: Solimões | F171: Terra | G171: 248.3638387
B172: 25 | C172: 3-RUC-8-AM | D172: Rio Urucu | E172: Solimões | F172: Terra | G172: 233.5282903
B173: 26 | C173: 7-RUC-67HPA-AM | D173: Rio Urucu | E173: Solimões | F173: Terra | G173: 231.862129
B174: 27 | C174: 7-RUC-85HP-AM | D174: Rio Urucu | E174: Solimões | F174: Terra | G174: 223.5078387
B175: 28 | C175: 7-LUC-73HP-AM | D175: Leste Do Urucu | E175: Solimões | F175: Terra | G175: 221.4267097
B176: 29 | C176: 7-LUC-41HP-AM | D176: Leste Do Urucu | E176: Solimões | F176: Terra | G176: 212.916
B177: 30 | C177: 7-RUC-103DP-AM | D177: Rio Urucu | E177: Solimões | F177: Terra | G177: 212.2635484
B180: Tabela 16. As 30 instalações com maior produção de petróleo (bbl/d)
B182: Nº | C182: Instalação | D182: Petróleo (bbl/d) | E182: Nº poços produtores | F182: Campos produtores
B183: 1 | C183: FPSO Guanabara | D183: 184791.4599 | E183: 6 | F183: Anc_Mero / Mero
B184: 2 | C184: FPSO Sepetiba | D184: 172465.2484 | E184: 6 | F184: Anc_Mero / Mero
B185: 3 | C185: Petrobras 71 | D185: 157631.225 | E185: 5 | F185: Itapu / Itapu_Eco
B186: 4 | C186: Petrobras 77 | D186: 156719.2411 | E186: 5 | F186: Búzios / Búzios_Eco / Tambuatá
B187: 5 | C187: FPSO Almirante Barroso | D187: 156280.2182 | E187: 5 | F187: Búzios / Búzios_Eco / Tambuatá
B188: 6 | C188: FPSO Carioca (Mv-30) | D188: 146963.6648 | E188: 4 | F188: Sépia / Sépia Leste / Sépia_Eco
B189: 7 | C189: Petrobras 76 | D189: 145012.5146 | E189: 5 | F189: Búzios / Búzios_Eco / Tambuatá
B190: 8 | C190: Petrobras 70 | D190: 121845.3508 | E190: 5 | F190: Atapu / Atapu_Eco / Anc_Norte_Atapu / Oeste De Atapu
B191: 9 | C191: Petrobras 67 (P-67) | D191: 121734.6786 | E191: 8 | F191: Anc_Tupi / Sul De Tupi / Tupi
B192: 10 | C192: FPSO Cidade de Itaguaí | D192: 113323.7931 | E192: 8 | F192: Tupi
B193: 11 | C193: FPSO Cidade de Saquarema | D193: 106663.3345 | E193: 7 | F193: Anc_Tupi / Sul De Tupi / Tupi
B194: 12 | C194: FPSO Cidade de Paraty | D194: 99588.38354 | E194: 6 | F194: Anc_Tupi / Sul De Tupi / Tupi
B195: 13 | C195: Petrobras 74 (P-74) | D195: 99341.72479 | E195: 5 | F195: Búzios / Búzios_Eco / Tambuatá
B196: 14 | C196: Petrobras 75 (P-75) | D196: 99298.95449 | E196: 4 | F196: Búzios / Búzios_Eco / Tambuatá
B197: 15 | C197: Petrobras 69 | D197: 94141.57142 | E197: 6 | F197: Anc_Tupi / Sul De Tupi / Tupi
B198: 16 | C198: Petrobras 66 (P-66) | D198: 90066.60337 | E198: 8 | F198: Anc_Tupi / Sul De Tupi / Tupi
B199: 17 | C199: FPSO Cidade de Mangaratiba | D199: 88089.17354 | E199: 7 | F199: Tupi
B200: 18 | C200: FPSO Cidade de Maricá | D200: 81330.7733 | E200: 7 | F200: Anc_Tupi / Sul De Tupi / Tupi
B201: 19 | C201: FPSO Cidade de Ilha Bela | D201: 72311.58709 | E201: 7 | F201: Nordeste De Sapinhoá / Noroeste De Sapinhoá / Sapinhoá / Sudoeste De Sapinhoá
B202: 20 | C202: Petrobras 58 | D202: 61826.22041 | E202: 14 | F202: Jubarte
B203: 21 | C203: FPSO Cidade de Campos dos Goytacazes | D203: 54449.1013 | E203: 12 | F203: Espadarte / Tartaruga Verde / Tartaruga Verde Sudoeste
B204: 22 | C204: Petrobras 68 | D204: 52384.7678 | E204: 10 | F204: Berbigão / Sul De Berbigão
B205: 23 | C205: FPSO Cidade de São Paulo | D205: 51194.24535 | E205: 6 | F205: Nordeste De Sapinhoá / Noroeste De Sapinhoá / Sapinhoá / Sudoeste De Sapinhoá
B206: 24 | C206: Peregrino C | D206: 46072.55147 | E206: 8 | F206: Peregrino / Pitangola
B207: 25 | C207: FPSO Cidade de Caraguatatuba | D207: 44696.44087 | E207: 3 | F207: Lapa
B208: 26 | C208: FPSO Pioneiro de Libra | D208: 44143.94659 | E208: 1 | F208: Anc_Mero / Mero
B209: 27 | C209: FPSO Cidade de Angra dos Reis | D209: 43950.79282 | E209: 5 | F209: Anc_Tupi / Sul De Tupi / Tupi
B210: 28 | C210: Petrobras 53 | D210: 43742.74741 | E210: 8 | F210: Marlim Leste
B211: 29 | C211: FPSO Marechal Duque de Caxias | D211: 38474.99441 | E211: 1 | F211: Anc_Mero / Mero
B212: 30 | C212: Polo Arara | D212: 6276.236184 | E212: 36 | F212: Arara Azul / Araracanga / Rio Urucu / Sudoeste Urucu
B215: Tabela 17. As 30 instalações com maior produção de gás natural (Mm³/d)
B217: Nº | C217: Instalação | D217: Gás natural (Mm³/d) | E217: Nº poços produtores | F217: Campos produtores
B218: 1 | C218: FPSO Guanabara | D218: 12156.96481 | E218: 6 | F218: Anc_Mero / Mero
B219: 2 | C219: FPSO Sepetiba | D219: 11471.29616 | E219: 6 | F219: Anc_Mero / Mero
B220: 3 | C220: Polo Arara | D220: 7996.068065 | E220: 36 | F220: Arara Azul / Araracanga / Rio Urucu / Sudoeste Urucu
B221: 4 | C221: FPSO Cidade de Itaguaí | D221: 7610.672484 | E221: 8 | F221: Tupi
B222: 5 | C222: Petrobras 77 | D222: 6500.335 | E222: 5 | F222: Búzios / Búzios_Eco / Tambuatá
... 48 more rows
